bitfinex/quotes_ETHUSD_20240925
["timestamp","ask_amount","ask_price","bid_price","bid_amount"]
[1727246508434,0.0381999,2625.3,2625.2,10.81019819]
[1727246509019,0.1189996,2625.3,2625.2,7.26986141]
[1727246509226,0.1189996,2625.3,2625.2,0.46063141]
[1727246509424,0.1189996,2625.3,2624.9,3.0]
[1727246509728,0.0381999,2625.3,2625.1,3.0]
[1727246510158,0.08072255,2625.2,2625.1,3.0]
[1727246510674,0.0381999,2625.3,2625.1,3.0]
[1727246511236,0.08072255,2625.2,2625.1,3.0]
[1727246511473,0.0381999,2625.3,2625.1,3.0]
[1727246511474,0.0381999,2625.3,2625.1,4.04261667]
[1727246511787,0.08072255,2625.2,2625.1,4.04261667]
[1727246512075,0.0381999,2625.3,2625.1,4.1187948]
[1727246512233,0.08072255,2625.2,2625.1,4.1187948]
[1727246512435,0.0381999,2625.3,2625.1,4.1187948]
[1727246512657,0.0381999,2625.3,2625.2,1.14686416]
[1727246514175,0.0381999,2625.3,2624.7,3.7838]
[1727246514375,0.8091,2625.2,2624.7,3.0]
[1727246516089,0.8091,2625.2,2624.6,3.6165221]
[1727246516090,3.80968,2624.9,2624.5,1.60611715]
[1727246516303,0.88959327,2624.8,2624.4,1.11612468]
[1727246516631,0.8091,2624.8,2624.2,4.41993189]
[1727246516807,3.81003,2624.7,2624.3,0.82307519]
[1727246516979,0.8091,2624.8,2624.2,3.61653189]
[1727246516980,4.61903,2624.8,2624.2,3.54033678]
[1727246517180,0.08041545,2624.6,2624.2,3.54033678]
[1727246517405,8.42893,2624.8,2624.3,0.73511568]
[1727246517613,0.08027233,2624.5,2624.3,0.73511568]
[1727246517787,8.42889,2624.8,2624.3,0.73511568]
[1727246517991,0.08015964,2624.4,2624.3,0.73511568]
[1727246518403,4.61899,2624.8,2624.3,3.73511568]
[1727246518599,0.08015964,2624.4,2624.3,3.0]
[1727246518912,0.08015964,2624.4,2624.1,3.0]
[1727246519112,3.81022,2624.6,2624.1,1.200443]
[1727246519416,3.81077,2624.2,2623.7,0.8034]
[1727246519720,3.81092,2624.1,2623.6,3.54033678]
[1727246519915,3.81105,2624.0,2623.7,0.81553568]
[1727246520087,0.07925782,2623.9,2623.7,0.81553568]
[1727246520511,3.81092,2624.1,2623.7,0.81553568]
[1727246520723,0.07937056,2624.0,2623.7,0.81553568]
[1727246520939,0.07937056,2624.0,2623.5,3.8117]
[1727246521101,0.8091,2624.3,2623.5,3.8117]
[1727246521102,0.8091,2624.3,2623.6,3.54033678]
[1727246521435,0.8091,2624.3,2623.6,3.61655892]
[1727246521436,3.8901896,2624.2,2623.6,3.61655892]
[1727246521599,3.8901896,2624.2,2623.7,0.74281689]
[1727246521804,0.0794996,2624.2,2623.8,3.54033678]
[1727246522135,3.81049,2624.4,2624.0,3.54033678]
[1727246522300,4.61946,2624.5,2624.0,3.54033678]
[1727246522640,0.07954907,2624.4,2624.0,3.61654847]
[1727246522847,0.07954907,2624.4,2624.0,4.35932032]
[1727246522998,0.07954907,2624.4,2624.2,3.54033678]
[1727246523205,0.07954907,2624.4,2624.3,3.07620302]
[1727246523398,4.61854,2625.1,2624.3,3.07620302]
[1727246523647,7.46,2625.5,2624.6,3.54033678]
[1727246523648,3.8473499,2625.3,2624.6,3.54033678]
[1727246523846,3.8473499,2625.3,2625.0,3.54033678]
[1727246523847,0.0381999,2625.3,2625.0,3.54033678]
[1727246524338,0.0381999,2625.3,2625.1,0.07618148]
[1727246524640,0.0381999,2625.3,2625.1,1.04259883]
[1727246524815,0.0381999,2625.3,2625.1,1.11877729]
[1727246525349,0.0381999,2625.3,2625.2,10.34956678]
[1727246525918,3.8462399,2626.1,2625.3,3.0]
[1727246526099,3.8462399,2626.1,2625.4,3.88509895]
[1727246526305,3.8462399,2626.1,2625.4,0.07616895]
[1727246526537,3.80807,2626.0,2625.4,1.0694629]
[1727246526743,4.57357,2626.0,2625.4,1.0694629]
[1727246526944,0.07307656,2625.9,2625.4,1.0694629]
[1727246527145,0.07307656,2625.9,2625.4,1.145634]
[1727246527306,0.07307656,2625.9,2625.4,3.8850011]
[1727246527877,0.07307656,2625.9,2625.4,3.8849911]
[1727246528154,0.07307656,2625.9,2625.4,3.8850211]
[1727246528463,0.07307656,2625.9,2625.5,3.80875]
[1727246528757,0.07307656,2625.9,2625.6,6.88478413]
[1727246528972,0.07307656,2625.9,2625.8,3.0]
[1727246529264,0.0381999,2626.1,2625.8,3.80836]
[1727246529418,0.07287078,2625.9,2625.8,6.80836]
[1727246529624,0.0381999,2626.1,2625.8,6.80836]
[1727246529858,0.0381999,2626.1,2625.8,6.80826]
[1727246530174,0.07298337,2626.0,2625.9,4.6416558]
[1727246530459,0.07298337,2626.0,2625.9,12.77622445]
[1727246530626,0.07298337,2626.0,2625.9,12.70006812]
[1727246530830,0.7655,2626.7,2626.1,3.80782]
[1727246531245,0.06858716,2626.6,2626.2,3.80776]
[1727246532171,0.06858716,2626.6,2626.4,3.80747]
[1727246532498,3.80761,2626.4,2625.9,3.0]
[1727246532624,3.8076,2626.4,2625.9,3.0]
[1727246532959,3.87626107,2626.3,2625.9,3.0]
[1727246533480,3.87626107,2626.3,2625.7,6.80849]
[1727246533638,0.06862107,2626.3,2625.7,3.0]
[1727246533839,0.06862107,2626.3,2625.9,3.0]
[1727246534033,0.06862107,2626.3,2626.0,3.80794]
[1727246534235,0.7655,2626.5,2625.8,0.3761526]
[1727246534565,0.7655,2626.5,2625.5,0.7837]
[1727246534566,0.7655,2626.5,2626.1,3.80783]
[1727246537868,0.7655,2626.5,2626.0,3.0]
[1727246537869,0.7655,2626.8,2626.3,3.80757]
[1727246538044,0.06897146,2626.4,2626.3,3.80757]
[1727246538382,0.06897146,2626.4,2626.3,7.57671909]
[1727246538548,0.7655,2626.8,2626.5,3.80729]
[1727246538888,0.7655,2626.8,2626.6,3.80708]
[1727246539070,0.06930906,2626.7,2626.5,3.80729]
[1727246539379,0.7655,2626.8,2626.3,7.57667909]
[1727246540489,0.7655,2626.8,2626.3,6.80753]
[1727246540656,4.57245,2626.8,2626.3,6.80753]
[1727246540987,3.88260097,2626.7,2626.2,3.0]
[1727246541287,4.57245,2626.8,2626.2,3.0]
[1727246541288,3.80724,2626.6,2626.2,3.0]
[1727246541590,3.80724,2626.6,2625.9,3.80813]
[1727246541591,0.06667119,2626.5,2626.0,3.0]
[1727246541748,0.06667119,2626.5,2626.1,3.80792]
[1727246542281,0.7833,2626.4,2626.0,6.80806]
[1727246542461,0.06667119,2626.5,2626.0,0.07615895]
[1727246542654,0.06648706,2626.3,2626.0,0.07615895]
[1727246542923,0.7833,2626.2,2626.0,3.0]
[1727246543120,0.84941817,2626.2,2626.0,6.80797]
[1727246543486,0.06611817,2626.2,2626.0,6.80797]
[1727246543688,0.7833,2626.5,2626.1,3.80792]
[1727246543993,0.06618017,2626.4,2626.3,3.80755]
[1727246544299,0.7833,2626.7,2626.3,3.80755]
[1727246544505,0.0669304,2626.6,2626.3,3.80755]
[1727246545226,0.0669304,2626.6,2626.2,3.80769]
[1727246545515,0.0669304,2626.6,2626.2,3.80767]
[1727246545705,0.0669304,2626.6,2626.3,3.8076]
[1727246546520,0.0669304,2626.6,2626.2,3.80776]
[1727246547123,0.0669304,2626.6,2626.4,3.80735]
[1727246547625,0.0669304,2626.6,2626.5,3.80734]
[1727246547815,0.0669304,2626.6,2626.4,3.80735]
[1727246548020,0.0669304,2626.6,2626.5,3.80734]
[1727246548216,0.8214999,2626.9,2626.4,3.80735]
[1727246548420,0.0669457,2626.6,2626.4,7.61476]
[1727246548621,0.8214999,2626.9,2626.4,3.80735]
[1727246548824,0.8214999,2626.9,2626.6,3.53271895]
[1727246548825,0.0381999,2626.9,2626.6,3.53271895]
[1727246549009,0.06481012,2626.8,2626.7,3.80695]
[1727246549386,0.0381999,2626.9,2626.7,3.80695]
[1727246549722,0.06481012,2626.8,2626.7,3.80695]
[1727246550418,0.06481012,2626.8,2626.7,7.643815]
[1727246550616,0.06481012,2626.8,2626.7,7.71994026]
[1727246550844,0.0381999,2626.9,2626.8,6.80691]
[1727246551028,0.0381999,2626.9,2626.8,10.41575299]
[1727246551241,0.0381999,2626.9,2626.8,10.33962895]
[1727246551444,0.0381999,2626.9,2626.8,8.68597439]
[1727246551616,0.0381999,2626.9,2626.8,3.0]
[1727246551820,0.0381999,2626.9,2626.7,4.643815]
[1727246551821,0.10298138,2626.9,2626.7,8.450785]
[1727246552148,0.06447129,2626.8,2626.7,7.643815]
[1727246553334,0.06447129,2626.8,2626.7,7.71994976]
[1727246553661,0.0381999,2626.9,2626.8,3.80691]
[1727246553864,0.0381999,2626.9,2626.8,5.76971091]
[1727246554019,0.0381999,2626.9,2626.8,9.30242986]
[1727246554224,0.0381999,2626.9,2626.8,9.22630582]
[1727246555471,0.0381999,2626.9,2626.8,12.99870582]
[1727246559455,0.0381999,2626.9,2626.8,13.54870582]
[1727246559863,0.0381999,2627.7,2627.6,3.80575]
[1727246560070,0.0381999,2627.7,2627.6,10.33846895]
[1727246561229,0.7636,2628.4,2627.9,3.80529]
[1727246561434,0.8028107,2628.4,2628.1,3.80494]
[1727246561966,0.8028107,2628.4,2627.7,3.0]
[1727246562127,4.6074307,2628.4,2627.9,3.80529]
[1727246562333,4.68296167,2628.4,2627.9,3.80529]
[1727246562529,0.06445242,2628.3,2627.8,3.80532]
[1727246562834,0.06445242,2628.3,2627.2,3.80626]
[1727246562835,4.56916,2627.8,2627.2,3.80626]
[1727246563234,0.06377796,2627.7,2627.2,3.80626]
[1727246563570,3.86940796,2627.7,2627.2,3.80623]
[1727246564073,3.80576,2627.6,2627.0,3.80652]
[1727246564376,0.82703268,2627.5,2627.0,0.50663148]
[1727246564669,3.80629,2627.3,2626.6,7.61426]
[1727246564965,0.06309016,2627.2,2627.0,3.80653]
[1727246565138,0.7636,2627.4,2627.1,0.380653]
[1727246565343,0.06320264,2627.3,2627.0,3.80653]
[1727246567875,0.06320264,2627.3,2626.0,3.808]
[1727246567876,0.7636,2626.7,2626.0,3.808]
[1727246568168,3.80728,2626.6,2626.0,3.80798]
[1727246568380,3.88281097,2626.6,2626.0,4.18878]
[1727246568534,0.06244898,2626.5,2626.0,4.18878]
[1727246568733,0.06244898,2626.5,2625.8,3.80829]
[1727246568734,4.57117,2626.4,2625.9,3.80818]
[1727246568934,0.06222391,2626.3,2625.8,3.80829]
[1727246569167,0.06222391,2626.3,2625.8,4.569976]
[1727246569579,0.06222391,2626.3,2626.0,3.80807]
[1727246570157,0.7636,2626.4,2626.1,3.80792]
[1727246570361,0.7636,2626.4,2626.1,7.61577]
[1727246570362,0.06222391,2626.3,2626.1,7.61577]
[1727246570690,0.06222391,2626.3,2626.2,3.80778]
[1727246571006,0.06222391,2626.3,2626.1,3.80785]
[1727246571373,0.06222391,2626.3,2626.2,3.80778]
[1727246571572,0.06222391,2626.3,2626.1,3.80783]
[1727246572665,0.06222391,2626.3,2625.9,3.80813]
[1727246572910,0.06222391,2626.3,2626.0,3.80797]
[1727246573269,0.06222391,2626.3,2626.2,3.80778]
[1727246573802,0.06204704,2626.3,2626.2,3.80778]
[1727246573964,4.59866,2626.7,2626.2,3.80778]
[1727246574164,0.06238464,2626.6,2626.2,3.80778]
[1727246575174,0.06238464,2626.6,2626.3,3.80751]
[1727246575595,0.06238464,2626.6,2626.4,3.80747]
[1727246576315,0.06238464,2626.6,2626.5,3.80734]
[1727246577276,0.7916,2626.9,2626.4,3.80747]
[1727246577480,0.7916,2627.2,2626.9,3.80665]
[1727246577777,0.7916,2627.2,2626.7,3.80697]
[1727246577967,3.80648,2627.1,2626.7,3.0]
[1727246578172,4.59804,2627.2,2626.7,3.0]
[1727246578371,3.80661,2627.1,2626.7,3.0]
[1727246578567,3.80661,2627.1,2626.5,4.188027]
[1727246578568,3.80661,2627.1,2626.6,3.0]
[1727246578803,3.80661,2627.1,2626.6,6.80716]
[1727246579001,3.80661,2627.1,2626.5,0.380747]
[1727246579002,3.88214097,2627.1,2626.5,0.380747]
[1727246579308,3.80661,2627.1,2626.6,6.80718]
[1727246579468,0.7916,2627.2,2626.6,6.80718]
[1727246579674,4.59804,2627.2,2626.6,6.80718]
[1727246580457,4.59804,2627.2,2626.9,3.80675]
[1727246580458,0.7916,2627.2,2626.9,3.80675]
[1727246582288,0.7916,2627.5,2626.9,4.648942]
[1727246582808,0.7916,2627.5,2626.9,0.842222]
[1727246582985,0.7916,2627.5,2627.2,3.80629]
[1727246584082,0.7916,2627.5,2627.3,3.80615]
[1727246584330,3.8446907,2627.8,2627.5,3.80589]
[1727246584331,0.8308107,2627.8,2627.5,3.80589]
[1727246584606,0.8308107,2627.8,2627.6,3.80574]
[1727246584911,0.8308107,2627.8,2627.4,3.8059]
[1727246584912,0.8308107,2627.8,2627.4,8.00006217]
[1727246585201,0.8308107,2627.8,2627.5,3.80589]
[1727246585410,0.8308107,2627.8,2627.7,3.8056]
[1727246585411,0.0392107,2627.8,2627.7,3.8056]
[1727246585703,0.0392107,2627.8,2627.5,3.80589]
[1727246585866,0.0392107,2627.8,2627.7,3.8056]
[1727246586742,0.0392107,2627.8,2627.7,6.8056]
[1727246589199,0.0392107,2627.8,2627.6,0.41940922]
[1727246589399,0.8019,2627.7,2627.5,3.80589]
[1727246589706,0.0392107,2627.8,2627.6,3.80575]
[1727246590286,0.0392107,2627.8,2627.6,0.761164]
[1727246590485,0.0392107,2627.8,2627.6,3.80565]
[1727246590814,0.0392107,2627.8,2627.7,3.8056]
[1727246593213,0.0392107,2627.8,2627.6,3.80574]
[1727246593509,0.0392107,2627.8,2627.6,3.80567]
[1727246593887,0.0392107,2627.8,2627.6,7.61134]
[1727246594190,0.0392107,2627.8,2627.6,4.566804]
[1727246595891,0.0392107,2627.8,2627.6,8.372464]
[1727246596102,0.0392107,2627.8,2627.6,4.566794]
[1727246598878,0.0392107,2627.8,2627.7,3.8056]
[1727246600188,0.0392107,2627.8,2627.7,6.88170935]
[1727246602821,0.0392107,2627.8,2627.7,6.8056]
[1727246606148,0.0392107,2627.8,2627.7,6.8817036]
[1727246606289,0.0392107,2627.8,2627.7,6.8056]
[1727246606489,0.0392107,2627.8,2627.7,8.30014469]
[1727246606896,0.0392107,2627.8,2627.7,11.82986155]
[1727246609405,0.0392107,2627.8,2627.7,13.15556155]
[1727246609606,0.8523241,2628.6,2628.3,3.80465]
[1727246609839,0.8523241,2628.6,2628.2,3.0]
[1727246610217,0.8523241,2628.6,2628.2,6.80487]
[1727246610749,0.8523241,2628.6,2628.2,3.0]
[1727246610898,4.6566741,2628.6,2628.1,3.80493]
[1727246611304,0.8523241,2628.6,2628.1,4.865944]
[1727246611506,0.8523241,2628.6,2628.3,3.8047]
[1727246612032,0.92785507,2628.6,2628.1,4.865944]
[1727246612239,0.8523241,2628.6,2628.1,3.80493]
[1727246612401,3.80445,2628.5,2628.0,3.0]
[1727246612615,3.87998097,2628.5,2628.0,3.0]
[1727246612914,0.8136,2628.4,2627.9,3.80521]
[1727246613102,0.8136,2628.4,2628.1,3.80503]
[1727246613538,0.8136,2628.4,2627.9,7.61045]
[1727246613740,0.07553097,2628.3,2627.7,3.80549]
[1727246614823,0.8136,2628.2,2627.8,3.80535]
[1727246615019,0.8136,2628.2,2627.7,3.80549]
[1727246615226,0.8136,2628.2,2627.8,3.80542]
[1727246616345,0.8136,2628.2,2627.8,7.61078]
[1727246616818,0.8136,2628.2,2627.8,3.80536]
[1727246617437,0.8136,2628.2,2627.9,3.80531]
[1727246617741,0.8136,2628.2,2627.8,3.80536]
[1727246617951,0.8136,2628.2,2627.8,7.61072]
[1727246618122,0.8136,2628.2,2627.8,4.566432]
[1727246618314,0.8136,2628.2,2628.0,3.80517]
[1727246619617,0.8136,2628.2,2627.8,8.371822]
[1727246620142,0.8136,2628.2,2627.9,3.8053]
[1727246621603,0.7672,2628.4,2628.0,3.80516]
[1727246621824,0.7672,2628.4,2628.1,3.80498]
[1727246622417,0.7672,2628.4,2628.0,3.80516]
[1727246623330,4.57181,2628.4,2627.9,3.80529]
[1727246623532,0.7672,2628.4,2628.0,3.80516]
[1727246624254,0.7672,2628.4,2627.8,4.566442]
[1727246624438,8.37652,2628.4,2627.8,4.566442]
[1727246624645,9.1730522,2628.4,2627.8,4.566442]
[1727246624841,5.3683322,2628.4,2627.8,8.371822]
[1727246625023,8.3765,2628.4,2627.8,8.371822]
[1727246625220,4.57182,2628.4,2627.8,8.371822]
[1727246625418,9.1730222,2628.4,2627.8,4.566442]
[1727246625980,4.6013622,2628.3,2627.8,4.566442]
[1727246626849,4.6013622,2628.3,2627.3,4.60269115]
[1727246626850,3.80554,2627.8,2627.2,0.79654115]
[1727246627053,3.80554,2627.8,2627.3,3.80611]
[1727246627677,1.5637122,2627.9,2627.2,3.80633]
[1727246627678,3.80563,2627.7,2627.2,3.80633]
[1727246627884,3.80563,2627.7,2627.3,0.88183562]
[1727246628064,3.80563,2627.7,2627.3,3.80617]
[1727246628238,5.45495047,2627.9,2627.3,3.80617]
[1727246628748,3.80555,2627.8,2627.3,3.80617]
[1727246630170,3.80555,2627.8,2627.1,6.80641]
[1727246630372,3.80555,2627.8,2627.5,3.80589]
[1727246630373,0.7965122,2627.8,2627.5,3.80589]
[1727246630584,0.0102573,2627.9,2627.8,6.80546]
[1727246632868,0.0102573,2627.9,2627.8,7.60826]
[1727246633190,0.0102573,2627.9,2627.8,11.19782166]
[1727246633402,0.0102573,2627.9,2627.8,11.12172485]
[1727246633994,0.0102573,2627.9,2627.8,10.31892485]
[1727246634288,0.0102573,2627.9,2627.8,8.82879035]
[1727246634488,0.0102573,2627.9,2627.8,7.61310478]
[1727246636170,0.0102573,2627.9,2627.8,8.82883177]
[1727246636557,0.0102573,2627.9,2627.8,8.8316866]
[1727246637189,0.0102573,2627.9,2627.8,7.61595064]
[1727246637490,0.0102573,2627.9,2627.8,9.27101151]
[1727246637695,0.0681423,2627.9,2627.8,9.27101151]
[1727246638793,0.0681423,2627.9,2627.8,10.48672815]
[1727246639000,0.0681423,2627.9,2627.8,8.46052087]
[1727246639180,0.0681423,2627.9,2627.8,15.61581533]
[1727246639688,0.0102573,2627.9,2627.8,15.61581533]
[1727246639893,0.0102573,2627.9,2627.8,15.61556353]
[1727246640471,0.0102573,2627.9,2627.8,15.99589036]
[1727246640694,0.0102573,2627.9,2627.8,15.99589271]
[1727246641402,0.0102573,2627.9,2627.8,15.61556588]
[1727246641758,0.0102573,2627.9,2627.8,10.48650787]
[1727246641962,0.0102573,2627.9,2627.8,6.80546]
[1727246642186,0.06823223,2627.9,2627.8,7.61590384]
[1727246642363,0.0102573,2627.9,2627.8,7.69200069]
[1727246642712,0.0102573,2627.9,2627.8,9.31241924]
[1727246642871,0.0102573,2627.9,2627.8,10.45200949]
[1727246644092,0.0102573,2627.9,2627.8,13.98172635]
[1727246644296,0.0102573,2627.9,2627.8,14.37761428]
[1727246644596,0.0102573,2627.9,2627.8,15.18035842]
[1727246644793,0.0102573,2627.9,2627.8,16.3572264]
[1727246646868,0.0102573,2627.9,2627.8,15.97689957]
[1727246647087,0.0102573,2627.9,2627.8,15.58101164]
[1727246647394,0.0102573,2627.9,2627.8,15.97686817]
[1727246647710,0.0102573,2627.9,2627.8,16.35715182]
[1727246647863,0.0102573,2627.9,2627.8,15.97683979]
[1727246648407,0.0102573,2627.9,2627.8,8.8217067]
[1727246648588,0.0102573,2627.9,2627.8,9.63205265]
[1727246649105,0.06823223,2627.9,2627.8,9.63205265]
[1727246649602,0.06823223,2627.9,2627.8,9.2362245]
[1727246650107,0.06823223,2627.9,2627.8,9.63206669]
[1727246651699,0.06823223,2627.9,2627.8,9.2362245]
[1727246652200,0.06823223,2627.9,2627.8,6.80546]
[1727246656775,0.06823223,2627.9,2627.8,7.20133156]
[1727246657701,0.06823223,2627.9,2627.8,7.59720387]
[1727246658365,0.06823223,2627.9,2627.8,8.40986403]
[1727246658567,0.06823223,2627.9,2627.8,7.59720387]
[1727246659598,0.06823223,2627.9,2627.8,9.24948006]
[1727246660615,0.06823223,2627.9,2627.8,9.6453745]
[1727246660968,0.06823223,2627.9,2627.8,9.64538844]
[1727246661687,0.06823223,2627.9,2627.8,9.249494]
[1727246662201,0.06823223,2627.9,2627.8,8.85362244]
[1727246663876,0.06823223,2627.9,2627.8,8.45773619]
[1727246664082,0.06823223,2627.9,2627.8,8.85364226]
[1727246664674,0.06823223,2627.9,2627.8,9.66636849]
[1727246665507,0.06823223,2627.9,2627.8,8.85364226]
[1727246665711,0.06823223,2627.9,2627.8,8.85364781]
[1727246666415,0.06823223,2627.9,2627.8,9.66636809]
[1727246666910,0.06823223,2627.9,2627.8,8.85364781]
[1727246667116,0.06823223,2627.9,2627.8,8.45773619]
[1727246667481,0.06823223,2627.9,2627.8,8.85365254]
[1727246668381,0.06823223,2627.9,2627.8,10.48243119]
[1727246670222,0.06823223,2627.9,2627.8,11.29518573]
[1727246670723,0.06823223,2627.9,2627.8,10.08651484]
[1727246671176,0.06823223,2627.9,2627.8,10.48243306]
[1727246673793,0.06823223,2627.9,2627.8,11.29535441]
[1727246674595,0.06823223,2627.9,2627.8,9.66657576]
[1727246674791,0.06823223,2627.9,2627.8,7.20137822]
[1727246675130,0.06823223,2627.9,2627.8,8.01449382]
[1727246675418,0.06823223,2627.9,2627.8,9.23446257]
[1727246675578,0.06823223,2627.9,2627.8,8.01449382]
[1727246676418,0.06823223,2627.9,2627.8,9.23506924]
[1727246676886,0.06823223,2627.9,2627.8,10.86384789]
[1727246677196,0.06823223,2627.9,2627.8,12.60929824]
[1727246680089,0.06823223,2627.9,2627.8,12.21338002]
[1727246680491,0.06823223,2627.9,2627.8,12.6097388]
[1727246682451,0.06823223,2627.9,2627.8,12.61031775]
[1727246683443,0.06823223,2627.9,2627.8,10.8648674]
[1727246683950,0.06823223,2627.9,2627.8,0.39635878]
[1727246684243,7.50241123,2627.9,2627.8,0.39635878]
[1727246684435,7.89097307,2627.9,2627.8,0.39635878]
[1727246684633,0.8053,2627.7,2627.2,3.80625]
[1727246684851,0.7985899,2627.5,2627.1,3.80633]
[1727246685034,0.7985899,2627.5,2627.2,3.80626]
[1727246685236,0.05726248,2627.4,2627.2,3.80626]
[1727246685543,0.05726248,2627.4,2627.2,3.0]
[1727246686255,0.8053,2627.3,2627.2,3.0]
[1727246687549,0.8053,2627.3,2627.0,3.0]
[1727246687935,0.05490395,2627.2,2627.1,3.80644]
[1727246688147,0.8053,2627.3,2627.2,3.0]
[1727246688355,0.8603164,2627.3,2626.9,3.80667]
[1727246688648,1.32694204,2627.3,2626.9,3.80667]
[1727246688852,0.8603164,2627.3,2626.9,3.80667]
[1727246690139,4.6665764,2627.3,2626.7,3.80703]
[1727246690359,0.8053,2627.2,2626.8,3.8069]
[1727246690670,3.86097204,2627.1,2626.6,3.80714]
[1727246691316,0.05449204,2627.1,2626.5,3.80722]
[1727246691521,3.86106204,2627.1,2626.6,3.8072]
[1727246691755,3.86106204,2627.1,2626.5,3.80722]
[1727246692055,0.7905,2627.0,2626.5,3.80722]
[1727246692215,0.7905,2627.0,2626.6,3.0]
[1727246692421,0.05429145,2626.9,2626.6,3.0]
[1727246693356,0.05429145,2626.9,2626.6,6.80717]
[1727246693516,0.05429145,2626.9,2626.6,8.43594865]
[1727246693721,0.05429145,2626.9,2626.8,6.25848865]
[1727246694021,0.7905,2627.2,2626.9,3.80676]
[1727246694222,0.7905,2627.2,2627.0,1.62877865]
[1727246695569,0.7905,2627.2,2627.0,5.43539865]
[1727246695876,0.05228841,2627.1,2627.0,5.43535865]
[1727246696030,0.05228841,2627.1,2627.0,5.51147821]
[1727246696368,0.7905,2627.5,2627.2,3.80629]
[1727246696567,0.05276509,2627.4,2627.0,5.43529865]
[1727246696740,0.05276509,2627.4,2627.2,3.8063]
[1727246697735,0.05276509,2627.4,2627.0,9.86762852]
[1727246697929,0.05276509,2627.4,2627.0,6.06110852]
[1727246698144,0.05276509,2627.4,2627.0,3.80652]
[1727246698366,3.85881509,2627.4,2626.9,3.0]
[1727246698832,4.5967,2627.3,2626.9,3.0]
[1727246699250,0.05259744,2627.2,2626.9,3.0]
[1727246699539,4.5967,2627.3,2626.9,3.0]
[1727246699748,0.05254018,2627.2,2626.9,3.0]
[1727246699950,4.5967,2627.3,2626.9,3.0]
[1727246700150,0.05254018,2627.2,2626.9,3.0]
[1727246700430,4.5967,2627.3,2626.7,6.80698]
[1727246700709,0.05251636,2627.1,2626.7,6.80698]
[1727246700975,0.05237434,2627.0,2626.7,6.80698]
[1727246701174,3.80633,2627.2,2626.7,6.80698]
[1727246701467,0.05251636,2627.1,2626.7,6.80698]
[1727246701670,0.05251636,2627.1,2626.7,8.23597855]
[1727246701869,0.05251636,2627.1,2626.9,3.0]
[1727246702032,0.05251636,2627.1,2626.7,4.42899855]
[1727246702233,3.80635,2627.2,2626.7,4.42899855]
[1727246702454,0.05231524,2627.0,2626.8,6.80683]
[1727246702668,0.05251636,2627.1,2626.8,6.80683]
[1727246702871,0.7905,2627.3,2626.8,6.80683]
[1727246702872,0.05198297,2626.9,2626.8,6.80683]
[1727246703071,0.7905,2627.3,2626.8,6.80683]
[1727246703565,0.05232042,2627.2,2626.8,6.80683]
[1727246703739,4.59676,2627.3,2626.8,6.80683]
[1727246703940,0.05254018,2627.2,2626.8,6.80683]
[1727246704177,4.59676,2627.3,2626.8,6.80683]
[1727246704398,0.05254018,2627.2,2626.8,6.80683]
[1727246704836,4.59676,2627.3,2626.8,6.80683]
[1727246705038,0.05251636,2627.1,2626.8,6.80683]
[1727246705275,0.05254018,2627.2,2626.8,6.80683]
[1727246705482,0.05240389,2627.0,2626.8,6.80683]
[1727246705693,4.59676,2627.3,2626.8,6.80683]
[1727246705839,0.05229141,2626.9,2626.6,5.45157865]
[1727246706042,3.80641,2627.2,2626.8,3.0]
[1727246706342,3.80693,2626.8,2626.3,3.80753]
[1727246706537,0.05204063,2626.7,2626.3,3.80753]
[1727246706863,0.7915,2626.7,2626.3,3.80753]
[1727246707087,0.05192813,2626.6,2626.1,3.80782]
[1727246707279,4.32416394,2626.6,2626.1,3.80782]
[1727246707478,4.27223581,2626.6,2626.1,3.80782]
[1727246707674,3.93325872,2626.5,2626.0,0.7915]
[1727246707867,0.7915,2626.4,2625.9,3.80816]
[1727246708069,0.7915,2626.4,2625.9,3.80811]
[1727246708380,0.05159056,2626.3,2625.9,3.80811]
[1727246708579,0.05159056,2626.3,2625.9,7.61624]
[1727246708767,0.05159056,2626.3,2626.0,6.80805]
[1727246708965,0.05159056,2626.3,2626.0,3.0]
[1727246714004,0.05159056,2626.3,2626.0,6.80803]
[1727246714163,0.05159056,2626.3,2626.1,3.80791]
[1727246714774,0.7915,2626.4,2626.1,3.80791]
[1727246714984,0.05150189,2626.3,2626.1,3.80791]
[1727246716318,0.05150189,2626.3,2626.1,3.80783]
[1727246717298,4.59878,2626.6,2626.1,3.80783]
[1727246717505,0.05103329,2626.2,2626.1,3.80783]
[1727246718004,4.59878,2626.6,2626.1,3.80783]
[1727246718175,0.05103329,2626.2,2626.1,3.80783]
[1727246718501,4.59878,2626.6,2626.1,7.61567]
[1727246718687,0.7915,2626.6,2626.1,3.80783]
[1727246718896,0.7915,2626.9,2626.5,3.53451671]
[1727246719202,0.7915,2626.9,2626.5,3.80724]
[1727246719778,0.7915,2626.9,2626.4,3.80737]
[1727246720173,0.7915,2626.9,2626.5,3.80734]
[1727246720912,0.05182287,2626.8,2626.5,3.80734]
[1727246722399,0.05182287,2626.8,2626.4,7.61478]
[1727246722581,0.05182287,2626.8,2626.4,3.80737]
[1727246724204,0.05182287,2626.8,2626.5,3.80726]
[1727246724915,0.05182287,2626.8,2626.7,3.53451671]
[1727246725077,0.8293,2627.1,2626.6,3.80717]
[1727246725421,0.8293,2627.1,2626.5,0.761463]
[1727246725422,3.93426558,2627.0,2626.5,6.80734]
[1727246725620,3.80689,2626.9,2626.4,3.8074]
[1727246725778,3.80689,2626.9,2626.2,6.80771]
[1727246725779,3.80707,2626.7,2626.2,6.80771]
[1727246725976,3.80707,2626.7,2626.0,3.80797]
[1727246725977,4.68823464,2626.6,2626.0,3.80797]
[1727246726287,4.68823464,2626.6,2626.1,3.80792]
[1727246726288,0.88095464,2626.6,2626.1,3.80792]
[1727246726500,0.88095464,2626.6,2626.1,3.80784]
[1727246726703,1.3878278,2626.6,2626.1,3.80784]
[1727246727307,1.3878278,2626.6,2626.2,3.80777]
[1727246727532,0.88095464,2626.6,2626.2,3.80777]
[1727246728410,0.88095464,2626.6,2626.2,5.43850995]
[1727246733198,4.76369561,2626.6,2626.0,1.63073995]
[1727246733406,0.8293,2626.5,2626.1,3.0]
[1727246733628,1.34374026,2626.5,2626.1,3.0]
[1727246733835,0.04976791,2626.4,2626.1,3.0]